{"text_format":"1","workbook":"xlsx","n_sheets":1,"sheets":["Калькуляция"],"not_rendered":{"charts":0,"images":0,"macros":1,"external_links":0,"defined_names":0,"comments":0,"pivot_tables":0},"unopened":[],"bounds":{"document_bytes":16777216,"sheet_cells":100000,"rows_first":2000,"rows_last":500,"rows_between":2000,"halvings":0,"cell_chars":16384,"cell_head_chars":4096},"cells_cut":0,"cells_raw":0,"read":"whole","date_system":"1900"}

{"sheet":"Калькуляция","index":0,"n_rows":27,"n_cols":19,"rows_kept":27,"cut":false,"hidden":false,"merged":[]}
[null,null,null,null,null,null,null,null,null,null,null,null,null,null,null,null,null,"пароль от таблицы ",111]
[]
["Ф. И. О. заказчика ",null,null,null,"Иванов Иван Иванович",null,null,null,null,"Иванов Иван Иванович"]
["Наименование/заказ",null,null,"Фурнитура",null,null,null,null,null,"Заказ №2"]
["Этаж",null,null,7,null,null,null,null,null,1]
["Адрес ",null,null,"Казань",null,null,null,null,null,"Казань"]
["Наименование","-","Цвет, артикул","Ед. изм.","Погонаж изделия","Коэффициент","Закупочная цена в рублях относительно курса валюты","По курсу валюты","Цена в рублях","Кол-во","Стоимость","Сумма"]
["Фурнитура 1",null,null,null,null,null,null,null,null,0]
["Штуцера"]
["ООО \"ВОЛГА\""]
["Изделие 1",null,null,"шт",null,1.6,100,null,{"$f":"G11","v":100},null,{"$f":"I11*F11","v":160},{"$f":"K11*J11","v":0}]
["Изделие 2",null,null,"шт",null,1.6,150,null,{"$f":"G12","v":150},null,{"$f":"I12*F12","v":240},{"$f":"K12*J12","v":0}]
["Изделие 3",null,null,"шт",null,1.6,200,null,200,null,{"$f":"I13*F13","v":320},{"$f":"K13*J13","v":0}]
["Втулки"]
["Изделие 4",null,null,"шт",null,1.6,300,null,{"$f":"G15","v":300},null,{"$f":"I15*F15","v":480},{"$f":"K15*J15","v":0}]
["Изделие 5",null,null,"шт",null,1.6,400,null,{"$f":"G16","v":400},null,{"$f":"I16*F16","v":640},{"$f":"K16*J16","v":0}]
["Опоры"]
["Колесные"]
["Изделие 6",null,null,"шт",null,1.6,450,null,{"$f":"G19","v":450},null,{"$f":"I19*F19","v":720},{"$f":"K19*J19","v":0}]
["Изделие 7",null,null,"шт",null,1.6,500,null,{"$f":"G20","v":500},null,800,0]
["Квадратные"]
["Изделие 8",null,null,"шт",null,1.6,550,null,{"$f":"G22","v":550},null,{"$f":"I22*F22","v":880},{"$f":"K22*J22","v":0}]
["Изделие 9",null,null,"шт",null,1.6,600,null,{"$f":"G23","v":600},null,{"$f":"I23*F23","v":960},0]
["Изделие 10",null,null,"шт",null,1.6,650,null,650,null,{"$f":"I24*F24","v":1040},0]
["Изделие 11",null,null,"шт",null,1.6,700,null,700,null,{"$f":"I25*F25","v":1120},0]
[]
[null,null,null,null,null,null,null,null,null,null,"ИТОГО",{"$f":"SUM(L11:L13,L15:L16,L19:L20,L22:L25)","v":0}]